Cogmind - Beta 16 @@@ ROGUE MODE // 2025.12.16 @ 19:23:54 Player: Amberulez Result: Destroyed by D-53 Grenadier with Mini Grenade Launcher Performance ------------- Evolutions (0) 0 Regions Visited (2) 400 Robots Destroyed (30) 150 Value Destroyed (746) 746 Prototype IDs (3) 60 Alien Tech Used (0) 0 Bonus (0) 0 TOTAL SCORE: 1356 Bonus ------- None Cogmind --------- Core Integrity 0/250 Matter 162/300 Energy 250/250 System Corruption 0% Temperature Cool (65) Movement Core (350) Ox6 Location -10/Mines Parts ------- > --- POWER (1) -------- Ion Engine > --- PROPULSION (2) --- (None) > --- UTILITY (2) ------ Small Storage Unit Hardened Light Armor Plating > --- WEAPON (2) ------- Light Cannon Mini Grenade Launcher > --- INVENTORY (8) ---- Light Ion Engine Improved Hover Unit Large Matter Pod (109) Hardened Light Armor Plating Hardened Light Armor Plating Assault Rifle Light Cannon Heavy Hammer Peak State ------------ > --- POWER ------------ Light Nuclear Core > --- PROPULSION ------- Light Treads Light Treads > --- UTILITY ---------- Small Storage Unit Visual Processing Unit > --- WEAPON ----------- Light Cannon Light Cannon > --- INVENTORY -------- Ion Engine Improved Hover Unit Improved Hover Unit Improved Hover Unit Improved Hover Unit Assault Rifle Assault Rifle Heavy Hammer [Rating: 11] Favorites ----------- Power Ion Engine Engine Ion Engine Power Core Light Nuclear Core Propulsion Light Treads Treads Light Treads Utility Small Storage Unit Device Sensor Array Storage Small Storage Unit Processor Visual Processing Unit Protection Hardened Light Armor Plating Weapon Light Cannon Energy Gun Small Laser Ballistic Gun Assault Rifle Ballistic Cannon Light Cannon Launcher Mini Grenade Launcher Impact Weapon Heavy Hammer Build | -11 -10 -10 ------- Run | Yrd Mat Min Slots Evolved . | . . . Power . | . . . Propulsion . | . . . Utility . | . . . Weapon . | . . . Parts Attached 17 | 6 7 4 Power 4 | 1 1 2 Engine 3 | 1 . 2 Core 1 | . 1 . Reactor . | . . . Propulsion 2 | 2 . . Treads 2 | 2 . . Leg . | . . . Wheel . | . . . Hover . | . . . Flight . | . . . Utility 4 | 1 3 . Device 1 | . 1 . Storage 1 | 1 . . Processor 1 | . 1 . Hackware . | . . . Protection 1 | . 1 . Artifact . | . . . Weapon 7 | 2 3 2 Energy Gun 1 | 1 . . Energy Cannon . | . . . Ballistic Gun 2 | 1 1 . Ballistic Cannon 2 | . 2 . Launcher 1 | . . 1 Special Weapon . | . . . Impact Weapon 1 | . . 1 Slashing Weapon . | . . . Piercing Weapon . | . . . Special Melee Weapon . | . . . Unidentified Prototypes . | . . . Parts Lost 3 | . 1 2 Power 1 | . 1 . Propulsion 2 | . . 2 Utility . | . . . Weapon . | . . . Highest Loss Streak 2 | . 1 2 To Critical Strikes . | . . . Average Backups 7 | 3 7 8 Power 1 | . 1 1 Propulsion 1 | 2 3 1 Utility 1 | . . 3 Weapon 2 | . 2 3 Tool/Special . | . . . Unused Backups 16 | . 11 5 Power 1 | . 1 . Propulsion 8 | . 7 1 Utility 4 | . 1 3 Weapon 3 | . 2 1 Tool/Special . | . . . Average Slot Usage (%) 97 | . 95 99 Engine 8 | . 2 13 Core 4 | . 9 . Treads 27 | . 28 27 Device 2 | . 4 . Storage 14 | . 14 14 Processor 2 | . 6 . Protection 7 | . . 14 Ballistic Gun 2 | . 6 . Ballistic Cannon 16 | . 19 13 Launcher 7 | . . 14 Peak Build Rating 11 | 6 11 11 Average Rating 9 | 4 9 10 On Entrance 4 | . 6 8 Avg Prop Armor Cover (%) . | . . . Naked Turns . | . . . Heaviest Build 19 | 13 17 19 Greatest Support 40 | 40 40 40 Greatest Overweight (x) . | . . . Average Overweight (x) . | . . . Largest Inventory Capacity 8 | 8 8 8 Average Capacity 7 | 6 8 8 Most Carried 8 | 6 8 8 Average Carried 7 | 3 7 8 Final Capacity 8 | 8 8 8 Final Carried 8 | 6 8 8 Class Distribution -------------------- 100% | Mutant Dominant Class ---------------- Mutant | -10/Materials Mutant | -10/Mines Resources | -11 -10 -10 ----------- Run | Yrd Mat Min Matter Collected 832 | 148 671 13 Remotely . | . . . Salvage Created 812 | . 738 74 Parts 55 | . 47 8 Haulers Intercepted 1 | . 1 . Recyclers Shooed . | . . . Parts Field Recycled . | . . . Retrieved Matter . | . . . Parts Self-Destructed . | . . . Prevented . | . . . Parts Restored . | . . . Kills | -11 -10 -10 ------- Run | Yrd Mat Min Combat Hostiles Destroyed 23 | . 20 3 Guns 7 | . 7 . Cannons 13 | . 13 . AOE 3 | . . 3 Classes Destroyed 7 | . 5 2 Worker 1 | . . 1 Builder 1 | . 1 . Hauler 1 | . 1 . Recycler 1 | . . 1 Watcher 3 | . 3 . Swarmer 6 | . 3 3 Grunt 17 | . 17 . Best Kill Streak 4 | . 4 3 Combat Bots Only 4 | . 4 3 Max Kills in Single Turn 3 | . 1 3 Gunslinging . | . . . Exploded 3 | . . 3 Melee . | . . . Uniques/NPCs Destroyed . | . . . Combat | -11 -10 -10 -------- Run | Yrd Mat Min Hostile Shots Fired 94 | . 81 13 Missed 19 | . 19 . Hits 75 | . 62 13 Projectile 75 | . 62 13 AOE 10 | . . 10 Critical Strikes 1 | . 1 . Damage Taken 1173 | . 681 492 Core 260 | . 137 123 Absorbed by Shields . | . . . Core Remaining (%) 100 | 100 . . Volleys Fired 69 | . 63 6 Largest 2 | . 2 2 Hottest 60 | . 60 60 Shots Fired 138 | . 126 12 Gun 57 | . 57 . Cannon 75 | . 69 6 Launcher 6 | . . 6 Special . | . . . Kinetic 116 | . 110 6 Thermal 16 | . 16 . Explosive 6 | . . 6 Electromagnetic . | . . . Robot Hit Streak 12 | . 12 2 Robot Miss Streak 5 | . 5 1 Penetration Max . | . . . Secondary Targets 1 | . 1 . Max Gunslinging Chain 1 | . 1 . Shots Hit Robots 83 | . 79 4 Core Hits 46 | . 33 13 Critical Kills . | . . . Critical Parts Destroyed . | . . . Critical Strikes 2 | . 2 . Blast 2 | . 2 . Melee Attacks 1 | . . 1 Impact 1 | . . 1 Slashing . | . . . Piercing . | . . . Sneak Attacks . | . . . Combat Hostiles . | . . . Follow-up Attacks . | . . . Damage Inflicted 1507 | . 1229 278 Guns 493 | . 493 . Cannons 762 | . 726 36 Explosions 239 | . . 239 Melee . | . . . Ramming 13 | . 10 3 Kinetic 1128 | . 1092 36 Thermal 127 | . 127 . Explosive 239 | . . 239 Electromagnetic . | . . . Impact . | . . . Slashing . | . . . Piercing . | . . . Highest Corruption . | . . . Average Corruption . | . . . Corruption Purged . | . . . Corruption Blocked . | . . . Overload Shots . | . . . Overflow Damage 6 | . 6 . Projectiles 6 | . 6 . Explosions . | . . . Melee . | . . . Knockbacks 8 | . 7 1 Impact . | . . . Kinetic 8 | . 7 1 Secondary . | . . . Self-Inflicted Damage 35 | . . 35 Shots 1 | . . 1 Rammed 2 | . 1 1 Targets Rammed 2 | . 1 1 Kicked . | . . . Crushed . | . . . Highest Temperature 129 | . 129 65 Average Temperature 36 | . 36 35 Received Heat Transfer 327 | . 327 . Siege Activations . | . . . Martial Activations . | . . . Shielding Activations . | . . . Robots Disrupted . | . . . Combat Hostiles . | . . . Robots Corrupted . | . . . Combat Hostiles . | . . . Parts Fried . | . . . Impact Corruptions . | . . . Robots Melted . | . . . Combat Hostiles . | . . . Parts Melted . | . . . Heat Transferred 300 | . 300 . Parts Sabotaged . | . . . Parts Stolen . | . . . Parts Stripped . | . . . Power Chain Reactions . | . . . Alert | -11 -10 -10 ------- Run | Yrd Mat Min Maximum Alert Level . | . . . Low Security (%) 100 | 100 100 100 Level 1 . | . . . Level 2 . | . . . Level 3 . | . . . Level 4 . | . . . Level 5 . | . . . High Security . | . . . Max Security . | . . . Peak Influence 120 | . 120 99 Initial 19 | . . 19 Average 31 | . 65 5 Influence Increases 712 | . 598 114 Destroy 0b10 Robot/C 460 | . 400 60 Destroy 0b10 Robot/NC 35 | . 25 10 Destroy Leader 108 | . 98 10 Successful Hack 41 | . 41 . Disable Machine 30 | . 30 . Destroy Structure 38 | . 4 34 Influence Decreases 691 | . 547 144 Entered New Map 32 | . . 32 Time Decay 639 | . 537 102 Lost Part 20 | . 10 10 Squads Dispatched 6 | . 6 . Investigation 5 | . 5 . Extermination . | . . . Reinforcement 1 | . 1 . Assault . | . . . Garrison . | . . . Intercept . | . . . Searches Triggered . | . . . Construction Impeded . | . . . Haulers Reinforced . | . . . Active Scanning Responses . | . . . Cargo Convoy Interrupts . | . . . Stealth | -11 -10 -10 --------- Run | Yrd Mat Min Distress Signals 3 | . 3 . Communications Jammed . | . . . Distress Signals . | . . . Times Spotted 36 | . 31 5 Peak Tracking Total 5 | . 5 3 Tactical Retreats . | . . . Traps | -11 -10 -10 ------- Run | Yrd Mat Min Traps Triggered 2 | . 2 . Indirectly . | . . . Trap Hack Attempts . | . . . Triggered . | . . . Disarmed . | . . . Reprogrammed . | . . . Reused . | . . . Traps Extracted . | . . . Installed . | . . . Triggered . | . . . Machines | -11 -10 -10 ---------- Run | Yrd Mat Min Machines Disabled 2 | . 2 . Max in Single Turn 1 | . 1 . Machines Repaired . | . . . Machines Dismantled . | . . . Machines Sabotaged . | . . . Overloaded Fab Kills . | . . . Hacking | -11 -10 -10 --------- Run | Yrd Mat Min Machines Accessed 9 | . 9 . Terminals 6 | . 6 . Fabricators . | . . . Repair Stations 1 | . 1 . Recycling Units 2 | . 2 . Scanalyzers . | . . . Garrison Access . | . . . Total Hacks 22 | . 22 . Successful 12 | . 12 . Failed 10 | . 10 . Catastrophic 3 | . 3 . Database Lockouts . | . . . Manual 4 | . 4 . Terminals 15 | . 15 . Fabricators . | . . . Repair Stations 2 | . 2 . Recycling Units 5 | . 5 . Scanalyzers . | . . . Garrison Access . | . . . Terminal Hacks 10 | . 10 . Robot Analysis 2 | . 2 . Prototype ID Bank 2 | . 2 . Locate Traps 1 | . 1 . Dispatch Records 1 | . 1 . Hauler Manifests 2 | . 2 . Registered Components 1 | . 1 . Registered Prototypes 1 | . 1 . Fabricator Hacks . | . . . Repair Station Hacks . | . . . Recycling Unit Hacks 2 | . 2 . Report Inventory 2 | . 2 . Scanalyzer . | . . . Garrison Access Hacks . | . . . Unauthorized Hacks . | . . . Terminals . | . . . Fabricators . | . . . Repair Stations . | . . . Recycling Units . | . . . Scanalyzers . | . . . Garrison Access . | . . . Data Cores Recovered . | . . . Used . | . . . Hacking Detections 7 | . 7 . Full Trace Events 3 | . 3 . Feedback Events . | . . . Feedback Blocked . | . . . Robot Schematics Acquired . | . . . Robots Built . | . . . Authchips . | . . . Time . | . . . Total Robot Build Rating . | . . . Part Schematics Acquired . | . . . Parts Built . | . . . Authchips . | . . . Time . | . . . Total Part Build Rating . | . . . Part Studies Acquired . | . . . Parts Repaired . | . . . Time . | . . . Parts Recycled . | . . . Recycled Matter . | . . . Retrieved Matter . | . . . Retrieved Components . | . . . Parts Scanalyzed . | . . . Part Schematics Acquired . | . . . Parts Damaged . | . . . Bothacking | -11 -10 -10 ------------ Run | Yrd Mat Min Used RIF Installer . | . . . Robots Hacked . | . . . Non-combat . | . . . Combat . | . . . Robot Hacks Applied . | . . . Relay Couplers Released . | . . . Fabnet Peak Effective % . | . . . Robots Rewired . | . . . Allies Hacked . | . . . Hacks Repelled . | . . . Allies | -11 -10 -10 -------- Run | Yrd Mat Min Total Allies . | . . . Largest Group . | . . . Highest-Rated Group . | . . . Highest-Rated Ally . | . . . Total Orders . | . . . Ally Attacks . | . . . Total Damage . | . . . Kills . | . . . Allies Corrupted . | . . . Allies Melted . | . . . Intel | -11 -10 -10 ------- Run | Yrd Mat Min Active Infowar (turns) 1414 | . 1414 . Optics 823 | . 823 . Sensors 591 | . 591 . Robot Analysis Total 2 | . 2 . Derelict Logs Recovered . | . . . Drone Launches . | . . . Drone Recoveries . | . . . Exploration | -11 -10 -10 ------------- Run | Yrd Mat Min Turns Passed 4052 | 121 1768 2163 Spaces Moved 1080 | 71 944 65 Core 6 | 6 . . Treads 1074 | 65 944 65 Legs . | . . . Wheels . | . . . Hover . | . . . Flight . | . . . Fastest Speed 50 | 50 160 160 Average Speed 159 | 150 160 160 Slowest Speed 160 | 160 160 160 Overloaded Moves . | . . . Propulsion Burnouts . | . . . Robots Hopped . | . . . Potential Cave-ins . | . . . Cave-ins Triggered . | . . . Exploration Rate (%) 36 | 4 86 18 Regions Visited 2 Branch Regions 1 Pre-discovered Areas . | . . . Known Exits Taken . | . . . Unknown Exits Taken 2 | 1 1 . Scrap Searched . | . . . Spaces Dug 1 | . . 1 Terrain Destroyed 51 | . . 51 Melee 1 | . . 1 Projectile . | . . . AOE 50 | . . 50 Terrain Rammed . | . . . Walls Destroyed . | . . . Machines Disabled . | . . . Actions | -11 -10 -10 --------- Run | Yrd Mat Min Total 3272 | 82 1082 2108 Wait 2064 | . 36 2028 Move 1078 | 70 943 65 Hop . | . . . Pick Up 21 | 6 15 . Fast Attach 10 | 6 3 1 Attach 1 | . 1 . Detach 1 | . 1 . Swap 9 | . 3 6 Drop 16 | . 16 . Fire 69 | . 63 6 Melee 1 | . . 1 Ram . | . . . Kick . | . . . Crush 2 | . 1 1 Escape Stasis . | . . . Rewire . | . . . Trap . | . . . Miscellaneous . | . . . Route ------- -11/Scrapyard -10/Materials (discovered 5 exits: [*Mat x3] / [*Min x2]) -10/Mines History --------- Turn | Location | Event 8 | -11/Scrapyard | Discovered new exit (range 16) 122 | -11/Scrapyard | Entered Materials 344 | -10/Materials | Build established: Mutant 488 | -10/Materials | Discovered new exit (range 13) 822 | -10/Materials | Discovered new exit (range 16) 1038 | -10/Materials | Discovered new exit (range 17) 1230 | -10/Materials | Discovered new exit (range 18) 1567 | -10/Materials | Discovered new exit (range 8) 1627 | -10/Materials | Core integrity fell below 50% 1890 | -10/Materials | Entered Mines 1891 | -10/Mines | Met a Derelict bent on vengeance 1988 | -10/Mines | Assembled infested the area 4046 | -10/Mines | Core integrity fell below 20% 4053 | -10/Mines | Destroyed by D-53 Grenadier with Mini Grenade Launcher Last Messages --------------- 01917_ Acquired Lgt. Ion Engine. 01988_ ALERT: Infestation in the mines, dispatching Demolisher response squad. 02293_ The unstable cave ceiling collapses. 02351_ U-05 Engineer lays Concrete. 02353_ U-05 Engineer builds a Wall. 04037_ Slammed into U-05 Engineer. 04040_ Lgt. Treads destroyed. 04040_ U-05 Engineer destroyed. 04040_ U-05 Engineer builds a Wall. 04040_ R-06 Scavenger destroyed. 04041_ U-05 Engineer builds a Wall. 04042_ U-05 Engineer destroyed. 04042_ K-01 Serf collects debris. 04043_ K-01 Serf destroyed. 04044_ The unstable cave ceiling collapses. 04046_ Lgt. Treads destroyed. 04047_ The unstable cave ceiling collapses. 04049_ D-53 Grenadier knocked back. 04052_ The unstable cave ceiling collapses. Map ----- +----------------------------------------------------+ | ??# ???????????## #?????????????????????? | | ??# ???????????? ##????????????????????? | | ??# ####????????? #????????????????????? | | ??# # ###???????? ?????????????????????? | | ??# ##????????? ?????????????????????? | | ?## # #?????????? ??????????????????????? | | ?# #??????????? ??????????????????????? | | ?# ############?# #??????????????????????? | | ?# = #??# #??????????????????????? | | ?## = #### #??????????????????????? | | ??################## #??????????????????????? | | ???????????????????# ### ##??????????????????????? | | ??????????????????## ### #???????????????????????? | | ?????????????????## ##??????????????????????? | | ?????????????????# #??????????????????????? | | ?????????????????# ##?????????????????????? | | ?????????????????## ##????????????????????? | | ?????????#????????##### #????????????????????? | | ????????## ???##?????# #????????????????????? | | ???????## ?? ???## #????????????????????? | | ??????? ?? #?# % ##????????????????????? | | ?????? ? # ##???????????????????? | | ????????# # ##??????????????????? | | ?????????# * #??????????????????? | | ?????????# ! d d #??????????????????? | | ??????????# @ #??????????????????? | | ???????????# #??????????????????? | | ???????????# # #??????????????????? | | ???????????# ## ##??????????????????? | | ???????????# ???## ##???????????????????? | | ???????????? ##??????#######????????????????????? | | ?????????????????????????????????????????????????? | | ?????????????????????????????????????????????????? | | ?????????????????????????????????????????????????? | | ?????????????????????????????????????????????????? | | ?????????????????????????????????????????????????? | | ?????????????????????????????????????????????????? | | ?????????????????????????????????????????????????? | | ?????????????????????????????????????????????????? | | ?????????????????????????????????????????????????? | | ?????????????????????????????????????????????????? | | ?????????????????????????????????????????????????? | | ?????????????????????????????????????????????????? | | ?????????????????????????????????????????????????? | | ?????????????????????????????????????????????????? | | ?????????????????????????????????????????????????? | | ?????????????????????????????????????????????????? | | ?????????????????????????????????????????????????? | | ?????????????????????????????????????????????????? | | ?????????????????????????????????????????????????? | +----------------------------------------------------+ Best States ------------- Heat Dissipation 25 Energy Generation 14 Energy Capacity 250 Matter Stores 300 Matter Capacity 300 Sight Range 18 Robot Scan Range 14 Terrain Scan Density 10 Armor Coverage 150 Evasion (%) 40 Recoil Reduction 2 Item Schematics ----------------- None Robot Schematics ------------------ None Fabricated ------------ Nothing Repaired ---------- Nothing Studied --------- None Alien Tech Used ----------------- None Achievements -------------- None Challenges ------------ None Game ------ Seed ForceLaunchProtomatter Manual? 0 Play Time 00:15:38 Cumulative 67.8 hours Start 2025.12.16 @ 19:08:48 End 2025.12.16 @ 19:23:54 Sessions 1 Manual Loads 0 Difficulty Rogue Special Mode None Game No. 81 Rogue 81 Adventurer 0 Explorer 0 Win Type - Total 1 Types 1/0/0/0/0/0/0/0/0/0 Lore% 31 Gallery% 36 Achievement% 23 Wizard Run 0 Options --------- Layout 2 ASCII 0 Keyboard 1 Movement Arrows Keybinds 0 Fullscreen 1 Font 24/Proggy Map View 50x44 Zoom Use 0% Tactical HUD 1 Map Filters NONE Filters NONE Steam 1 RUN: 2ec7691b-f6cf-4fea-b635-9a1ce2f87a65